[Event "*** Titled Tuesday Blitz"]
[Site "Chess.com"]
[Date "2019.06.04"]
[Round "5"]
[White "attack2mateU"]
[Black "Andrjywa"]
[Result "1-0"]
[WhiteElo "2704"]
[BlackElo "2509"]
[TimeControl "180+2"]
[EndTime "14:08:01 PDT"]
[Termination "attack2mateU won by resignation"]

1. e4 {[%clk 0:03:01.9]} 1... c5 {[%clk 0:02:42.6]} 2. Nf3 {[%clk 0:03:02.7]}
2... e6 {[%clk 0:02:43.6]} 3. d4 {[%clk 0:03:04]} 3... cxd4 {[%clk 0:02:45.5]}
4. Nxd4 {[%clk 0:03:05.3]} 4... a6 {[%clk 0:02:45.7]} 5. Nc3 {[%clk 0:03:05.2]}
5... b5 {[%clk 0:02:46.6]} 6. Bd3 {[%clk 0:03:06]} 6... Bb7 {[%clk 0:02:48.1]}
7. O-O {[%clk 0:03:04.8]} 7... Qc7 {[%clk 0:02:48.8]} 8. Re1 {[%clk 0:03:03.9]}
8... Be7 {[%clk 0:02:48.7]} 9. a4 {[%clk 0:02:35]} 9... b4 {[%clk 0:02:48.6]}
10. Na2 {[%clk 0:02:36]} 10... Nf6 {[%clk 0:02:45.7]} 11. c3 {[%clk 0:02:23.7]}
11... bxc3 {[%clk 0:02:44.7]} 12. Nxc3 {[%clk 0:02:24.2]} 12... d6 {[%clk
0:02:43.5]} 13. Be3 {[%clk 0:02:16.3]} 13... Nc6 {[%clk 0:02:39.6]} 14. Nxc6
{[%clk 0:02:14.6]} 14... Bxc6 {[%clk 0:02:38.1]} 15. a5 {[%clk 0:02:16.1]} 15...
O-O {[%clk 0:02:36.7]} 16. Qe2 {[%clk 0:02:11.8]} 16... Qb7 {[%clk 0:02:28.7]}
17. Bg5 {[%clk 0:01:38.6]} 17... h6 {[%clk 0:02:16.9]} 18. Bh4 {[%clk 0:01:38]}
18... Nxe4 {[%clk 0:02:11.3]} 19. Nxe4 {[%clk 0:01:04]} 19... Bxh4 {[%clk
0:02:12.2]} 20. Nxd6 {[%clk 0:01:05.5]} 20... Qd7 {[%clk 0:01:54.7]} 21. Nc4
{[%clk 0:01:04.4]} 21... Qd5 {[%clk 0:01:48.2]} 22. Be4 {[%clk 0:01:03.7]} 22...
Qxe4 {[%clk 0:01:46.8]} 23. Qxe4 {[%clk 0:01:05.6]} 23... Bxe4 {[%clk
0:01:48.3]} 24. Rxe4 {[%clk 0:01:07]} 24... Bf6 {[%clk 0:01:49.9]} 25. Rb1
{[%clk 0:01:03.6]} 25... Rac8 {[%clk 0:01:42.3]} 26. b4 {[%clk 0:01:04.8]} 26...
Be7 {[%clk 0:01:40.3]} 27. Nb6 {[%clk 0:01:05.3]} 27... Rc2 {[%clk 0:01:38.2]}
28. Rd4 {[%clk 0:00:52.7]} 28... Rd8 {[%clk 0:01:25]} 29. Rxd8+ {[%clk
0:00:53.2]} 29... Bxd8 {[%clk 0:01:26.9]} 30. Nd7 {[%clk 0:00:53.9]} 30... Be7
{[%clk 0:01:20.2]} 31. g3 {[%clk 0:00:54]} 31... Rc4 {[%clk 0:01:05.2]} 32. b5
{[%clk 0:00:53.7]} 32... axb5 {[%clk 0:01:05.3]} 33. Rxb5 {[%clk 0:00:55.6]}
33... Ra4 {[%clk 0:01:04.4]} 34. Rb8+ {[%clk 0:00:39.2]} 34... Kh7 {[%clk
0:01:05.3]} 35. Ra8 {[%clk 0:00:40.8]} 35... Bb4 {[%clk 0:00:54.9]} 36. a6
{[%clk 0:00:41.5]} 36... Ra1+ {[%clk 0:00:41.4]} 37. Kg2 {[%clk 0:00:42.1]}
37... Ra2 {[%clk 0:00:43.3]} 38. a7 {[%clk 0:00:34.9]} 38... Bd6 {[%clk
0:00:28.6]} 39. Nb6 {[%clk 0:00:22.2]} 39... Bc5 {[%clk 0:00:29.2]} 40. Rc8
{[%clk 0:00:23.3]} 40... Rxa7 {[%clk 0:00:24.7]} 41. Rxc5 {[%clk 0:00:24]} 41...
Rb7 {[%clk 0:00:25.8]} 42. Nc4 {[%clk 0:00:25.1]} 42... Ra7 {[%clk 0:00:25.4]}
43. Ne5 {[%clk 0:00:26.1]} 43... g6 {[%clk 0:00:24.8]} 44. h4 {[%clk 0:00:25]}
44... Kg7 {[%clk 0:00:25.3]} 45. Nf3 {[%clk 0:00:26.1]} 45... h5 {[%clk
0:00:25.5]} 46. Ng5 {[%clk 0:00:25.7]} 46... Rb7 {[%clk 0:00:26.5]} 47. Kf3
{[%clk 0:00:26.7]} 47... Ra7 {[%clk 0:00:27.8]} 48. Rc3 {[%clk 0:00:26.6]} 48...
Rb7 {[%clk 0:00:29]} 49. Ke3 {[%clk 0:00:27.7]} 49... Ra7 {[%clk 0:00:30.3]} 50.
Kd4 {[%clk 0:00:28.5]} 50... Rb7 {[%clk 0:00:30.9]} 51. Rf3 {[%clk 0:00:28.3]}
51... Ra7 {[%clk 0:00:29]} 52. Kc5 {[%clk 0:00:29.1]} 52... Rb7 {[%clk
0:00:24.4]} 53. Kd6 {[%clk 0:00:30]} 53... Ra7 {[%clk 0:00:23.6]} 54. Rf4 {[%clk
0:00:29.6]} 54... Rb7 {[%clk 0:00:23.9]} 55. Rc4 {[%clk 0:00:20.2]} 55... Ra7
{[%clk 0:00:20.5]} 56. Rc7 {[%clk 0:00:21]} 56... Rxc7 {[%clk 0:00:20.7]} 57.
Kxc7 {[%clk 0:00:22.9]} 57... Kf6 {[%clk 0:00:22.1]} 58. Kd6 {[%clk 0:00:23.6]}
58... Kf5 {[%clk 0:00:23.4]} 59. Nxf7 {[%clk 0:00:24.7]} 59... Kg4 {[%clk
0:00:23.9]} 60. Ne5+ {[%clk 0:00:25.9]} 60... Kh3 {[%clk 0:00:25.1]} 61. Kxe6
{[%clk 0:00:27]} 61... Kg2 {[%clk 0:00:26.4]} 62. f4 {[%clk 0:00:27.2]} 62...
Kxg3 {[%clk 0:00:27.4]} 63. Nxg6 {[%clk 0:00:28.8]} 63... Kg4 {[%clk 0:00:27.2]}
64. f5 {[%clk 0:00:30.1]} 1-0

[Event "*** Titled Tuesday Blitz"]
[Site "Chess.com"]
[Date "2019.06.04"]
[Round "5"]
[White "savinspm"]
[Black "SamCopeland"]
[Result "0-1"]
[WhiteElo "2058"]
[BlackElo "2103"]
[TimeControl "180+2"]
[EndTime "14:08:04 PDT"]
[Termination "SamCopeland won by resignation"]

1. e4 {[%clk 0:03:01.9]} 1... Nf6 {[%clk 0:02:59.4]} 2. e5 {[%clk 0:03:01.1]}
2... Nd5 {[%clk 0:03:00.3]} 3. d4 {[%clk 0:03:02.5]} 3... d6 {[%clk 0:03:01.6]}
4. Nf3 {[%clk 0:03:03.7]} 4... dxe5 {[%clk 0:02:52.5]} 5. Nxe5 {[%clk
0:02:56.1]} 5... c6 {[%clk 0:02:52.1]} 6. Bc4 {[%clk 0:02:55]} 6... Bf5 {[%clk
0:02:42.5]} 7. Nc3 {[%clk 0:02:54.3]} 7... e6 {[%clk 0:01:55.1]} 8. Nxd5 {[%clk
0:02:37.8]} 8... exd5 {[%clk 0:01:52.6]} 9. Bd3 {[%clk 0:02:38.6]} 9... Bxd3
{[%clk 0:01:50.4]} 10. Qxd3 {[%clk 0:02:39]} 10... Bd6 {[%clk 0:01:46.4]} 11.
O-O {[%clk 0:02:28.1]} 11... O-O {[%clk 0:01:45.7]} 12. Nf3 {[%clk 0:02:27.5]}
12... Qf6 {[%clk 0:01:38.5]} 13. c3 {[%clk 0:02:27.8]} 13... Nd7 {[%clk
0:01:38.2]} 14. Bg5 {[%clk 0:02:28.6]} 14... Qg6 {[%clk 0:01:36.9]} 15. Qxg6
{[%clk 0:02:28.2]} 15... hxg6 {[%clk 0:01:38.8]} 16. Rfe1 {[%clk 0:02:29.2]}
16... Rfe8 {[%clk 0:01:39.7]} 17. Bh4 {[%clk 0:02:26.9]} 17... f6 {[%clk
0:01:31.3]} 18. Bg3 {[%clk 0:02:25.9]} 18... Bxg3 {[%clk 0:01:31.2]} 19. hxg3
{[%clk 0:02:27.8]} 19... Kf7 {[%clk 0:01:31.4]} 20. g4 {[%clk 0:02:26.2]} 20...
Re4 {[%clk 0:01:10.7]} 21. Rxe4 {[%clk 0:01:58.9]} 21... dxe4 {[%clk 0:01:12.6]}
22. Nd2 {[%clk 0:01:59.4]} 22... f5 {[%clk 0:01:13.7]} 23. g5 {[%clk 0:02:00.1]}
23... Nf8 {[%clk 0:01:08.4]} 24. Nc4 {[%clk 0:01:46.5]} 24... Ke6 {[%clk
0:00:57]} 25. Ne5 {[%clk 0:01:44.4]} 25... Nh7 {[%clk 0:00:49.4]} 26. Nxg6
{[%clk 0:01:43.8]} 26... Nxg5 {[%clk 0:00:50.4]} 27. Nf4+ {[%clk 0:01:44.7]}
27... Kd6 {[%clk 0:00:50.5]} 28. Re1 {[%clk 0:01:37.8]} 28... Re8 {[%clk
0:00:45.2]} 29. Kf1 {[%clk 0:01:37.5]} 29... Ne6 {[%clk 0:00:45]} 30. Nxe6
{[%clk 0:01:20.4]} 30... Rxe6 {[%clk 0:00:46.9]} 31. g3 {[%clk 0:01:20]} 31...
Rh6 {[%clk 0:00:46.1]} 32. Kg2 {[%clk 0:01:18.4]} 32... g5 {[%clk 0:00:45.6]}
33. g4 {[%clk 0:01:12.8]} 33... Ke6 {[%clk 0:00:33.5]} 34. f3 {[%clk 0:01:07.4]}
34... Rh4 {[%clk 0:00:30.1]} 35. gxf5+ {[%clk 0:01:01.3]} 35... Kxf5 {[%clk
0:00:32]} 36. fxe4+ {[%clk 0:01:01.9]} 36... Rxe4 {[%clk 0:00:33.9]} 37. Rf1+
{[%clk 0:00:59.6]} 37... Rf4 {[%clk 0:00:34.4]} 38. Re1 {[%clk 0:00:59.6]} 38...
Re4 {[%clk 0:00:35.6]} 39. Rh1 {[%clk 0:00:59]} 39... Re2+ {[%clk 0:00:36.4]}
40. Kf3 {[%clk 0:00:58]} 40... Rxb2 {[%clk 0:00:37]} 41. Rh7 {[%clk 0:00:57.8]}
41... a5 {[%clk 0:00:32.4]} 42. Re7 {[%clk 0:00:49.4]} 42... a4 {[%clk
0:00:19.7]} 43. Rf7+ {[%clk 0:00:27.8]} 43... Ke6 {[%clk 0:00:20.2]} 44. Rg7
{[%clk 0:00:27.8]} 44... b5 {[%clk 0:00:16.7]} 45. Ke4 {[%clk 0:00:23]} 45...
Rxa2 {[%clk 0:00:14.7]} 46. Rg6+ {[%clk 0:00:21.5]} 46... Kd7 {[%clk 0:00:14.3]}
47. Rg7+ {[%clk 0:00:21.3]} 47... Kd6 {[%clk 0:00:14.3]} 48. Rg6+ {[%clk
0:00:22.2]} 48... Kc7 {[%clk 0:00:15.5]} 49. Rxg5 {[%clk 0:00:22.9]} 49... a3
{[%clk 0:00:15.1]} 50. Kd3 {[%clk 0:00:23.2]} 50... Rh2 {[%clk 0:00:14.3]} 51.
Rg1 {[%clk 0:00:21.6]} 51... a2 {[%clk 0:00:15.2]} 52. d5 {[%clk 0:00:19.6]}
52... c5 {[%clk 0:00:13.7]} 53. c4 {[%clk 0:00:15.2]} 53... b4 {[%clk
0:00:14.4]} 54. Rg7+ {[%clk 0:00:12]} 54... Kd6 {[%clk 0:00:15.5]} 55. Rg6+
{[%clk 0:00:12.7]} 55... Ke7 {[%clk 0:00:16.5]} 56. Rg7+ {[%clk 0:00:13.8]}
56... Kf6 {[%clk 0:00:16.7]} 57. Rg1 {[%clk 0:00:14.7]} 57... b3 {[%clk
0:00:18]} 58. Kc3 {[%clk 0:00:15.6]} 58... b2 {[%clk 0:00:18.4]} 0-1

[Event "*** Titled Tuesday Blitz"]
[Site "Chess.com"]
[Date "2019.06.04"]
[Round "5"]
[White "Haykos"]
[Black "Babas"]
[Result "0-1"]
[WhiteElo "2556"]
[BlackElo "2398"]
[TimeControl "180+2"]
[EndTime "14:08:12 PDT"]
[Termination "Babas won on time"]

1. e4 {[%clk 0:03:01.9]} 1... e5 {[%clk 0:02:51.5]} 2. Nf3 {[%clk 0:03:02.6]}
2... Nf6 {[%clk 0:02:52.4]} 3. Nxe5 {[%clk 0:03:02.8]} 3... d6 {[%clk
0:02:53.9]} 4. Nf3 {[%clk 0:03:03]} 4... Nxe4 {[%clk 0:02:55.3]} 5. Nc3 {[%clk
0:03:04.9]} 5... Nxc3 {[%clk 0:02:56]} 6. dxc3 {[%clk 0:03:05.6]} 6... Be7
{[%clk 0:02:57.9]} 7. Bf4 {[%clk 0:02:54]} 7... Nd7 {[%clk 0:02:59.1]} 8. Qd2
{[%clk 0:02:51.8]} 8... Nf6 {[%clk 0:03:00.1]} 9. O-O-O {[%clk 0:02:51.2]} 9...
O-O {[%clk 0:02:58.8]} 10. Bc4 {[%clk 0:02:47.4]} 10... c5 {[%clk 0:02:56.8]}
11. Rhe1 {[%clk 0:02:41.8]} 11... d5 {[%clk 0:02:53.4]} 12. Bxd5 {[%clk
0:02:38.8]} 12... Nxd5 {[%clk 0:02:34.8]} 13. Qxd5 {[%clk 0:02:40.7]} 13... Be6
{[%clk 0:02:35.4]} 14. Qxd8 {[%clk 0:02:39.9]} 14... Rfxd8 {[%clk 0:02:34.3]}
15. b3 {[%clk 0:02:33.1]} 15... Bf6 {[%clk 0:02:34.4]} 16. Be5 {[%clk 0:02:33]}
16... Be7 {[%clk 0:02:18.2]} 17. c4 {[%clk 0:02:32.5]} 17... a6 {[%clk
0:02:10.4]} 18. Bc7 {[%clk 0:02:21.1]} 18... Rxd1+ {[%clk 0:01:56.3]} 19. Rxd1
{[%clk 0:02:21.2]} 19... Rc8 {[%clk 0:01:21.2]} 20. Bd6 {[%clk 0:02:20.6]} 20...
Bf6 {[%clk 0:01:21.1]} 21. Be5 {[%clk 0:02:21.5]} 21... Be7 {[%clk 0:01:19.2]}
22. h3 {[%clk 0:02:22.5]} 22... b5 {[%clk 0:01:18.9]} 23. cxb5 {[%clk
0:02:23.5]} 23... axb5 {[%clk 0:01:20.8]} 24. Kb2 {[%clk 0:02:24.9]} 24... f6
{[%clk 0:01:15.3]} 25. Bd6 {[%clk 0:02:25.2]} 25... Rd8 {[%clk 0:01:10.9]} 26.
Bxe7 {[%clk 0:02:16.2]} 26... Rxd1 {[%clk 0:01:11.6]} 27. Bxc5 {[%clk
0:02:17.8]} 27... Bd5 {[%clk 0:01:12.9]} 28. a4 {[%clk 0:02:10.4]} 28... bxa4
{[%clk 0:01:13.3]} 29. bxa4 {[%clk 0:02:12.3]} 29... Kf7 {[%clk 0:00:56.3]} 30.
a5 {[%clk 0:02:09.1]} 30... Bb7 {[%clk 0:00:45]} 31. Nd4 {[%clk 0:01:20.2]}
31... Bxg2 {[%clk 0:00:28.5]} 32. f3 {[%clk 0:01:20.9]} 32... Bf1 {[%clk
0:00:23.3]} 33. Bb6 {[%clk 0:01:02]} 33... Ba6 {[%clk 0:00:21.5]} 34. Kb3 {[%clk
0:00:27.6]} 34... Rh1 {[%clk 0:00:20.2]} 35. c4 {[%clk 0:00:28.2]} 35... Rxh3
{[%clk 0:00:21]} 36. c5 {[%clk 0:00:28.9]} 36... Rh1 {[%clk 0:00:13.3]} 37. c6
{[%clk 0:00:28.6]} 37... Rc1 {[%clk 0:00:14.8]} 38. c7 {[%clk 0:00:20.8]} 38...
h5 {[%clk 0:00:15.9]} 39. Kb2 {[%clk 0:00:18.4]} 39... Rc4 {[%clk 0:00:15.7]}
40. Nb3 {[%clk 0:00:18.8]} 40... h4 {[%clk 0:00:16.5]} 41. Nc5 {[%clk
0:00:20.3]} 41... Bc8 {[%clk 0:00:17.7]} 42. Kb3 {[%clk 0:00:18.8]} 42... Rc1
{[%clk 0:00:18.8]} 43. a6 {[%clk 0:00:16.7]} 43... Bxa6 {[%clk 0:00:19.4]} 44.
Nxa6 {[%clk 0:00:17.4]} 44... Rc6 {[%clk 0:00:12.4]} 45. Bg1 {[%clk 0:00:09.7]}
45... g5 {[%clk 0:00:11.8]} 46. Kb4 {[%clk 0:00:10.9]} 46... Ke6 {[%clk
0:00:12.6]} 47. Kb5 {[%clk 0:00:12.2]} 47... Rc1 {[%clk 0:00:12.1]} 48. Nc5+
{[%clk 0:00:13.3]} 48... Rxc5+ {[%clk 0:00:11.3]} 49. Kxc5 {[%clk 0:00:15]}
49... Kd7 {[%clk 0:00:13]} 50. Kb6 {[%clk 0:00:16.2]} 50... Kc8 {[%clk
0:00:13.9]} 51. Kc6 {[%clk 0:00:17.4]} 51... f5 {[%clk 0:00:15.4]} 52. Bh2
{[%clk 0:00:18.8]} 52... g4 {[%clk 0:00:17.1]} 53. fxg4 {[%clk 0:00:19.4]} 53...
fxg4 {[%clk 0:00:19]} 54. Kd5 {[%clk 0:00:20.9]} 54... g3 {[%clk 0:00:20.6]} 0-1

[Event "*** Titled Tuesday Blitz"]
[Site "Chess.com"]
[Date "2019.06.04"]
[Round "5"]
[White "TigranLPetrosyan"]
[Black "SergeiAza"]
[Result "1-0"]
[WhiteElo "2849"]
[BlackElo "2775"]
[TimeControl "180+2"]
[EndTime "14:08:20 PDT"]
[Termination "TigranLPetrosyan won by resignation"]

1. Nf3 {[%clk 0:02:54.4]} 1... Nf6 {[%clk 0:03:00.2]} 2. g3 {[%clk 0:02:48.6]}
2... b6 {[%clk 0:03:00.6]} 3. Bg2 {[%clk 0:02:50.2]} 3... Bb7 {[%clk 0:03:02.1]}
4. d3 {[%clk 0:02:48.9]} 4... c5 {[%clk 0:02:59.8]} 5. e4 {[%clk 0:02:30.9]}
5... d6 {[%clk 0:03:00.6]} 6. O-O {[%clk 0:02:32.4]} 6... Nbd7 {[%clk
0:03:01.6]} 7. c4 {[%clk 0:02:27.8]} 7... g6 {[%clk 0:02:59.8]} 8. Nc3 {[%clk
0:02:25.3]} 8... e5 {[%clk 0:02:49.7]} 9. Ne1 {[%clk 0:02:15]} 9... h5 {[%clk
0:02:40]} 10. f4 {[%clk 0:02:12.4]} 10... h4 {[%clk 0:02:35.1]} 11. g4 {[%clk
0:02:09.7]} 11... h3 {[%clk 0:02:15.2]} 12. Bh1 {[%clk 0:01:50]} 12... exf4
{[%clk 0:01:57.1]} 13. Bxf4 {[%clk 0:01:51.9]} 13... Ne5 {[%clk 0:01:51.2]} 14.
Bxe5 {[%clk 0:01:31.3]} 14... dxe5 {[%clk 0:01:51.8]} 15. Qf3 {[%clk 0:01:33]}
15... Rh4 {[%clk 0:01:44.4]} 16. Qxf6 {[%clk 0:01:27.8]} 16... Rxg4+ {[%clk
0:01:44.3]} 17. Bg2 {[%clk 0:01:23.8]} 17... Qxf6 {[%clk 0:01:22.5]} 18. Rxf6
{[%clk 0:01:25.7]} 18... Be7 {[%clk 0:01:19.4]} 19. Rf3 {[%clk 0:01:25.7]} 19...
hxg2 {[%clk 0:01:19.9]} 20. Nxg2 {[%clk 0:01:26.9]} 20... f5 {[%clk 0:01:18.5]}
21. Rh3 {[%clk 0:01:13.2]} 21... O-O-O {[%clk 0:01:05]} 22. Re1 {[%clk
0:01:09.4]} 22... fxe4 {[%clk 0:00:42.5]} 23. Nxe4 {[%clk 0:00:51.1]} 23... Bxe4
{[%clk 0:00:42.5]} 24. Rxe4 {[%clk 0:00:51]} 24... Rxe4 {[%clk 0:00:43.4]} 25.
dxe4 {[%clk 0:00:52]} 25... Rd1+ {[%clk 0:00:40]} 26. Kf2 {[%clk 0:00:52.5]}
26... Rd2+ {[%clk 0:00:41]} 27. Kf3 {[%clk 0:00:50.2]} 27... Rxb2 {[%clk
0:00:38.3]} 28. Ne3 {[%clk 0:00:47.9]} 28... Rxa2 {[%clk 0:00:30.4]} 29. Rh8+
{[%clk 0:00:48.5]} 29... Kd7 {[%clk 0:00:30.6]} 30. Nd5 {[%clk 0:00:49.5]} 30...
Bg5 {[%clk 0:00:20.4]} 31. Rh7+ {[%clk 0:00:50.7]} 31... Kd6 {[%clk 0:00:16]}
32. h4 {[%clk 0:00:48.1]} 32... Bc1 {[%clk 0:00:16]} 33. Rg7 {[%clk 0:00:48.8]}
33... Rh2 {[%clk 0:00:13.5]} 34. Rxg6+ {[%clk 0:00:48.9]} 34... Kd7 {[%clk
0:00:14.4]} 35. Kg3 {[%clk 0:00:47.5]} 35... Rh1 {[%clk 0:00:14.4]} 36. Rg7+
{[%clk 0:00:48.5]} 36... Kd6 {[%clk 0:00:15.2]} 37. Rxa7 {[%clk 0:00:49.6]}
37... Bf4+ {[%clk 0:00:14.1]} 38. Kg4 {[%clk 0:00:50.2]} 38... Ke6 {[%clk
0:00:11.7]} 39. Re7+ {[%clk 0:00:49.4]} 39... Kd6 {[%clk 0:00:12.6]} 40. Rb7
{[%clk 0:00:50.7]} 40... Rc1 {[%clk 0:00:09.5]} 41. Rxb6+ {[%clk 0:00:50.5]}
41... Kd7 {[%clk 0:00:10.7]} 42. Rb3 {[%clk 0:00:36.2]} 42... Kd6 {[%clk
0:00:10.4]} 43. Rc3 {[%clk 0:00:37]} 43... Rd1 {[%clk 0:00:10.4]} 44. Ra3 {[%clk
0:00:32.4]} 44... Rg1+ {[%clk 0:00:10.9]} 45. Kf5 {[%clk 0:00:33.2]} 45... Rh1
{[%clk 0:00:10.5]} 46. Ra6+ {[%clk 0:00:28.7]} 46... Kd7 {[%clk 0:00:11.7]} 47.
Nf6+ {[%clk 0:00:30.1]} 47... Kc7 {[%clk 0:00:11.7]} 48. h5 {[%clk 0:00:31.2]}
48... Rf1 {[%clk 0:00:11.1]} 49. Nd5+ {[%clk 0:00:25.1]} 49... Kb7 {[%clk
0:00:12.2]} 50. Rb6+ {[%clk 0:00:25.8]} 50... Ka7 {[%clk 0:00:13.4]} 51. Rb3
{[%clk 0:00:25]} 51... Rh1 {[%clk 0:00:12.4]} 52. Nxf4 {[%clk 0:00:19.8]} 52...
exf4 {[%clk 0:00:12.4]} 53. Kxf4 {[%clk 0:00:20.2]} 53... Rxh5 {[%clk
0:00:13.4]} 54. e5 {[%clk 0:00:16]} 54... Rh4+ {[%clk 0:00:13.2]} 55. Kf5 {[%clk
0:00:17.5]} 55... Rxc4 {[%clk 0:00:14.4]} 56. e6 {[%clk 0:00:19]} 56... Rc1
{[%clk 0:00:15.2]} 57. Re3 {[%clk 0:00:19]} 57... Rf1+ {[%clk 0:00:13.5]} 58.
Ke5 {[%clk 0:00:20.2]} 58... Rf8 {[%clk 0:00:14.1]} 59. e7 {[%clk 0:00:21.5]}
59... Rh8 {[%clk 0:00:15.5]} 60. Kd6 {[%clk 0:00:20.4]} 60... Kb6 {[%clk
0:00:13.8]} 61. e8=Q {[%clk 0:00:21.3]} 1-0

[Event "*** Titled Tuesday Blitz"]
[Site "Chess.com"]
[Date "2019.06.04"]
[Round "5"]
[White "IIIlllII1llIl"]
[Black "Thjop"]
[Result "1-0"]
[WhiteElo "2771"]
[BlackElo "2590"]
[TimeControl "180+2"]
[EndTime "14:08:22 PDT"]
[Termination "IIIlllII1llIl won by resignation"]

1. e4 {[%clk 0:03:01.9]} 1... e6 {[%clk 0:03:00.2]} 2. d4 {[%clk 0:03:02.5]}
2... d5 {[%clk 0:03:00.5]} 3. Nc3 {[%clk 0:03:02.9]} 3... Bb4 {[%clk 0:02:59.6]}
4. e5 {[%clk 0:03:03.4]} 4... c5 {[%clk 0:02:59.8]} 5. a3 {[%clk 0:03:04.1]}
5... Bxc3+ {[%clk 0:02:59.8]} 6. bxc3 {[%clk 0:03:06]} 6... Qa5 {[%clk
0:03:01.1]} 7. Bd2 {[%clk 0:02:53.8]} 7... Qa4 {[%clk 0:03:01.5]} 8. Qg4 {[%clk
0:02:48.5]} 8... Kf8 {[%clk 0:03:02.1]} 9. Qd1 {[%clk 0:02:43.9]} 9... b6 {[%clk
0:02:56.6]} 10. h4 {[%clk 0:01:54.2]} 10... Ne7 {[%clk 0:02:54.7]} 11. h5 {[%clk
0:01:54.1]} 11... h6 {[%clk 0:02:55.7]} 12. Nf3 {[%clk 0:01:47.3]} 12... Ba6
{[%clk 0:02:54]} 13. Rh4 {[%clk 0:01:45]} 13... Bxf1 {[%clk 0:02:48.9]} 14. Kxf1
{[%clk 0:01:42.5]} 14... c4 {[%clk 0:02:48.2]} 15. Ne1 {[%clk 0:01:17.9]} 15...
Ke8 {[%clk 0:02:31]} 16. f4 {[%clk 0:01:15.8]} 16... Nbc6 {[%clk 0:02:23.9]} 17.
g4 {[%clk 0:01:13.6]} 17... g6 {[%clk 0:02:07.7]} 18. hxg6 {[%clk 0:01:10.1]}
18... fxg6 {[%clk 0:02:08.2]} 19. Qf3 {[%clk 0:00:49.3]} 19... Kd7 {[%clk
0:02:00.1]} 20. Qh3 {[%clk 0:00:50.2]} 20... h5 {[%clk 0:01:58.4]} 21. Qh1
{[%clk 0:00:34]} 21... Raf8 {[%clk 0:01:46.3]} 22. Ke2 {[%clk 0:00:31]} 22...
Rhg8 {[%clk 0:01:21.7]} 23. f5 {[%clk 0:00:31.8]} 23... gxf5 {[%clk 0:01:15]}
24. gxh5 {[%clk 0:00:29]} 24... Rg4 {[%clk 0:01:11.6]} 25. h6 {[%clk 0:00:25.5]}
25... Rh8 {[%clk 0:00:42.7]} 26. h7 {[%clk 0:00:13.5]} 26... Rg6 {[%clk
0:00:23.4]} 27. Rh6 {[%clk 0:00:11.4]} 27... Rg7 {[%clk 0:00:24.3]} 28. Qh4
{[%clk 0:00:08.5]} 28... Ng6 {[%clk 0:00:18.1]} 29. Qf6 {[%clk 0:00:06.9]} 29...
Rhxh7 {[%clk 0:00:16.7]} 30. Rxh7 {[%clk 0:00:06.1]} 30... Rxh7 {[%clk
0:00:17.8]} 31. Qxg6 {[%clk 0:00:07.4]} 31... Rh2+ {[%clk 0:00:18.8]} 32. Kd1
{[%clk 0:00:08.4]} 32... Ne7 {[%clk 0:00:19.7]} 33. Qg3 {[%clk 0:00:08.7]} 33...
Rh7 {[%clk 0:00:18.4]} 34. Bg5 {[%clk 0:00:08.2]} 34... Nc6 {[%clk 0:00:18.3]}
35. Bf6 {[%clk 0:00:08.2]} 35... Rh1 {[%clk 0:00:12.4]} 36. Qg7+ {[%clk
0:00:07.7]} 36... Kc8 {[%clk 0:00:13.7]} 37. Qf7 {[%clk 0:00:08.4]} 37... Qb5
{[%clk 0:00:10.5]} 38. Qxe6+ {[%clk 0:00:08.6]} 38... Kb7 {[%clk 0:00:11.6]} 39.
Qd7+ {[%clk 0:00:07.2]} 39... Ka6 {[%clk 0:00:12.6]} 40. Kd2 {[%clk 0:00:08.1]}
40... Nxd4 {[%clk 0:00:10.8]} 41. Qxb5+ {[%clk 0:00:08]} 41... Nxb5 {[%clk
0:00:12.7]} 42. e6 {[%clk 0:00:07.9]} 42... Nd6 {[%clk 0:00:14]} 43. Ke3 {[%clk
0:00:08.4]} 43... Ne8 {[%clk 0:00:13.6]} 44. Bg5 {[%clk 0:00:08.5]} 44... Kb5
{[%clk 0:00:14.5]} 45. Kd4 {[%clk 0:00:08.8]} 45... Kc6 {[%clk 0:00:15.7]} 46.
Ke5 {[%clk 0:00:10.1]} 46... Rh2 {[%clk 0:00:16]} 47. Nf3 {[%clk 0:00:10.2]}
47... Re2+ {[%clk 0:00:17]} 48. Kxf5 {[%clk 0:00:11.3]} 48... Nd6+ {[%clk
0:00:18.2]} 49. Kf6 {[%clk 0:00:10.9]} 49... Ne4+ {[%clk 0:00:19.4]} 50. Ke7
{[%clk 0:00:11.6]} 50... Rf2 {[%clk 0:00:18.9]} 51. Nd4+ {[%clk 0:00:12.5]}
51... Kc5 {[%clk 0:00:19]} 52. Be3 {[%clk 0:00:13.6]} 52... Rg2 {[%clk
0:00:16.9]} 53. Rb1 {[%clk 0:00:13.8]} 53... Rg7+ {[%clk 0:00:15.7]} 54. Kf8
{[%clk 0:00:14.3]} 54... Rh7 {[%clk 0:00:16.4]} 55. e7 {[%clk 0:00:14.4]} 55...
Nf6 {[%clk 0:00:15.1]} 56. Bg5 {[%clk 0:00:09.3]} 56... Nd7+ {[%clk 0:00:13.3]}
57. Kg8 {[%clk 0:00:09]} 57... Rh5 {[%clk 0:00:12]} 58. Ne6+ {[%clk 0:00:08.8]}
58... Kd6 {[%clk 0:00:12.3]} 59. e8=Q {[%clk 0:00:10.2]} 59... Rxg5+ {[%clk
0:00:13.5]} 60. Nxg5 {[%clk 0:00:12.1]} 60... Nf6+ {[%clk 0:00:15.2]} 61. Kf7
{[%clk 0:00:13.4]} 61... Nxe8 {[%clk 0:00:17.1]} 62. Kxe8 {[%clk 0:00:15.1]}
62... Kc5 {[%clk 0:00:19]} 63. Nf3 {[%clk 0:00:16.4]} 63... d4 {[%clk
0:00:20.9]} 64. Nxd4 {[%clk 0:00:17.6]} 64... a5 {[%clk 0:00:22]} 65. a4 {[%clk
0:00:18.7]} 65... b5 {[%clk 0:00:23.9]} 66. Rxb5+ {[%clk 0:00:19.7]} 1-0